[Event "Titled Tuesday Blitz May 03 Early 2022"]
[White "Souleidis, Georgios"]
[Black "Mikhalsky, Vladimir"]
[WhiteFideId "4206827"]
[BlackFideId "14144352"]
[WhiteElo "2401"]
[BlackElo "2301"]
[Result "1-0"]
[Round "08"]
[TimeControl "180+1"]
[Date "2022.05.03"]
[WhiteClock "0:00:27"]
[BlackClock "0:00:01"]

1. e4 {[%clk 0:03:00]}  g6 {[%clk 0:02:59]} 2. d4 {[%clk 0:02:59]}  Bg7 {[%clk 0:02:59]} 3. Nf3 {[%clk 0:03:00]}  d6 {[%clk 0:02:59]} 4. Bc4 {[%clk 0:03:00]}  a6 {[%clk 0:02:58]} 5. c3 {[%clk 0:02:58]}  e6 {[%clk 0:02:57]} 6. O-O {[%clk 0:02:58]}  b5 {[%clk 0:02:56]} 7. Bb3 {[%clk 0:02:59]}  Bb7 {[%clk 0:02:56]} 8. Re1 {[%clk 0:02:59]}  Nd7 {[%clk 0:02:54]} 9. Nbd2 {[%clk 0:02:59]}  c5 {[%clk 0:02:53]} 10. dxc5 {[%clk 0:02:35]}  Nxc5 {[%clk 0:02:45]} 11. Bc2 {[%clk 0:02:34]}  Nf6 {[%clk 0:02:45]} 12. b4 {[%clk 0:02:17]}  Ncd7 {[%clk 0:02:41]} 13. Nb3 {[%clk 0:02:14]}  Qc7 {[%clk 0:02:32]} 14. Bb2 {[%clk 0:02:11]}  Nb6 {[%clk 0:02:27]} 15. Na5 {[%clk 0:02:11]}  Nc4 {[%clk 0:02:23]} 16. Nxc4 {[%clk 0:02:10]}  Qxc4 {[%clk 0:02:18]} 17. Bd3 {[%clk 0:02:06]}  Qc7 {[%clk 0:02:13]} 18. a4 {[%clk 0:02:06]}  O-O {[%clk 0:02:10]} 19. axb5 {[%clk 0:01:54]}  axb5 {[%clk 0:02:10]} 20. Nd4 {[%clk 0:01:54]}  Qb6 {[%clk 0:01:45]} 21. Qe2 {[%clk 0:01:35]}  d5 {[%clk 0:01:12]} 22. e5 {[%clk 0:01:28]}  Ne4 {[%clk 0:01:12]} 23. f3 {[%clk 0:01:07]}  f6 {[%clk 0:01:11]} 24. exf6 {[%clk 0:01:02]}  Nxf6 {[%clk 0:01:10]} 25. Qxe6+ {[%clk 0:01:00]}  Qxe6 {[%clk 0:01:10]} 26. Nxe6 {[%clk 0:01:00]}  Rfe8 {[%clk 0:01:02]} 27. Nxg7 {[%clk 0:01:00]}  Kxg7 {[%clk 0:01:02]} 28. Bxb5 {[%clk 0:00:53]}  Rxe1+ {[%clk 0:01:00]} 29. Rxe1 {[%clk 0:00:54]}  Ra2 {[%clk 0:00:59]} 30. Re2 {[%clk 0:00:45]}  Kf7 {[%clk 0:00:58]} 31. c4 {[%clk 0:00:45]}  d4 {[%clk 0:00:42]} 32. c5 {[%clk 0:00:42]}  Bd5 {[%clk 0:00:37]} 33. Kf2 {[%clk 0:00:40]}  d3 {[%clk 0:00:23]} 34. Bxd3 {[%clk 0:00:40]}  Ra4 {[%clk 0:00:23]} 35. Bxf6 {[%clk 0:00:39]}  Kxf6 {[%clk 0:00:22]} 36. Rb2 {[%clk 0:00:40]}  Ra3 {[%clk 0:00:20]} 37. Be2 {[%clk 0:00:40]}  Ke7 {[%clk 0:00:19]} 38. b5 {[%clk 0:00:35]}  Kd7 {[%clk 0:00:19]} 39. Rd2 {[%clk 0:00:30]}  Ke6 {[%clk 0:00:18]} 40. c6 {[%clk 0:00:30]}  Rc3 {[%clk 0:00:15]} 41. f4 {[%clk 0:00:28]}  Kd6 {[%clk 0:00:14]} 42. Rb2 {[%clk 0:00:28]}  Kc7 {[%clk 0:00:11]} 43. Bf3 {[%clk 0:00:27]}  Bxf3 {[%clk 0:00:09]} 44. gxf3 {[%clk 0:00:28]}  Kb6 {[%clk 0:00:09]} 45. Kg3 {[%clk 0:00:28]}  Rc5 {[%clk 0:00:10]} 46. Kg4 {[%clk 0:00:28]}  Rh5 {[%clk 0:00:08]} 47. h4 {[%clk 0:00:27]}  Rf5 {[%clk 0:00:08]} 48. Rc2 {[%clk 0:00:26]}  Kc7 {[%clk 0:00:07]} 49. b6+ {[%clk 0:00:27]}  Kxb6 {[%clk 0:00:01]} 50. c7 {[%clk 0:00:27]} 1-0


[Site "https://www.chess.com"]

[Event "Titled Tuesday Blitz May 03 Early 2022"]
[White "Stanisz, Patryk"]
[Black "Sztokbant, Bernardo Vainzoff"]
[WhiteFideId "1123106"]
[BlackFideId "2115956"]
[WhiteElo "1833"]
[BlackElo "2225"]
[Result "1-0"]
[Round "08"]
[TimeControl "180+1"]
[Date "2022.05.03"]
[WhiteClock "0:00:17"]
[BlackClock "0:00:03"]

1. Nf3 {[%clk 0:03:00]}  c5 {[%clk 0:02:54]} 2. b3 {[%clk 0:02:53]}  Nf6 {[%clk 0:02:53]} 3. Bb2 {[%clk 0:02:54]}  e6 {[%clk 0:02:50]} 4. e3 {[%clk 0:02:54]}  d5 {[%clk 0:02:50]} 5. c4 {[%clk 0:02:55]}  Nc6 {[%clk 0:02:49]} 6. Be2 {[%clk 0:02:52]}  Be7 {[%clk 0:02:49]} 7. O-O {[%clk 0:02:51]}  O-O {[%clk 0:02:49]} 8. d3 {[%clk 0:02:50]}  a6 {[%clk 0:02:47]} 9. Nbd2 {[%clk 0:02:48]}  b5 {[%clk 0:02:47]} 10. Ne5 {[%clk 0:02:45]}  Nxe5 {[%clk 0:02:44]} 11. Bxe5 {[%clk 0:02:44]}  Nd7 {[%clk 0:02:45]} 12. Bb2 {[%clk 0:02:44]}  Bf6 {[%clk 0:02:45]} 13. Bxf6 {[%clk 0:02:44]}  Qxf6 {[%clk 0:02:43]} 14. cxd5 {[%clk 0:02:35]}  exd5 {[%clk 0:02:44]} 15. Bf3 {[%clk 0:02:35]}  Bb7 {[%clk 0:02:44]} 16. b4 {[%clk 0:02:28]}  cxb4 {[%clk 0:02:43]} 17. Qb3 {[%clk 0:02:21]}  a5 {[%clk 0:02:29]} 18. Rac1 {[%clk 0:02:15]}  Qd6 {[%clk 0:02:16]} 19. Qb2 {[%clk 0:02:05]}  Rfc8 {[%clk 0:01:53]} 20. Nb3 {[%clk 0:02:04]}  Ne5 {[%clk 0:01:38]} 21. Be2 {[%clk 0:01:59]}  a4 {[%clk 0:01:24]} 22. Nd4 {[%clk 0:01:58]}  Ba6 {[%clk 0:01:16]} 23. f4 {[%clk 0:01:50]}  Nd7 {[%clk 0:01:08]} 24. Nf5 {[%clk 0:01:47]}  Qf6 {[%clk 0:01:08]} 25. Qxf6 {[%clk 0:01:45]}  Nxf6 {[%clk 0:01:06]} 26. Ne7+ {[%clk 0:01:45]}  Kf8 {[%clk 0:01:07]} 27. Nxc8 {[%clk 0:01:44]}  Bxc8 {[%clk 0:01:02]} 28. Rc5 {[%clk 0:01:35]}  Bd7 {[%clk 0:01:00]} 29. Rb1 {[%clk 0:01:33]}  b3 {[%clk 0:00:54]} 30. axb3 {[%clk 0:01:32]}  a3 {[%clk 0:00:54]} 31. b4 {[%clk 0:01:24]}  Ke7 {[%clk 0:00:51]} 32. Rc2 {[%clk 0:01:18]}  Ra4 {[%clk 0:00:35]} 33. Ra2 {[%clk 0:01:16]}  d4 {[%clk 0:00:29]} 34. e4 {[%clk 0:01:07]}  Be6 {[%clk 0:00:29]} 35. Raa1 {[%clk 0:01:08]}  g6 {[%clk 0:00:20]} 36. Bd1 {[%clk 0:01:05]}  Ra7 {[%clk 0:00:19]} 37. Bb3 {[%clk 0:01:05]}  Bd7 {[%clk 0:00:06]} 38. h3 {[%clk 0:01:00]}  Nh5 {[%clk 0:00:06]} 39. Rf1 {[%clk 0:00:44]}  Ng3 {[%clk 0:00:03]} 40. Rf2 {[%clk 0:00:44]}  h5 {[%clk 0:00:02]} 41. Kh2 {[%clk 0:00:38]}  h4 {[%clk 0:00:03]} 42. Rfa2 {[%clk 0:00:35]}  Rc7 {[%clk 0:00:02]} 43. Rxa3 {[%clk 0:00:30]}  f6 {[%clk 0:00:03]} 44. Ra7 {[%clk 0:00:29]}  Rc3 {[%clk 0:00:03]} 45. Bd5 {[%clk 0:00:25]}  Rc2 {[%clk 0:00:03]} 46. R7a2 {[%clk 0:00:18]}  g5 {[%clk 0:00:03]} 47. Rxc2 {[%clk 0:00:17]} 1-0


[Site "https://www.chess.com"]

[Event "Titled Tuesday Blitz May 03 Early 2022"]
[White "Svane, Rasmus"]
[Black "Visakh N R"]
[WhiteFideId "4657101"]
[BlackFideId "25012223"]
[WhiteElo "2645"]
[BlackElo "2448"]
[Result "0-1"]
[Round "08"]
[TimeControl "180+1"]
[Date "2022.05.03"]
[WhiteClock "0:00:03"]
[BlackClock "0:01:10"]

1. Nf3 {[%clk 0:03:00]}  d5 {[%clk 0:02:57]} 2. g3 {[%clk 0:03:01]}  Nd7 {[%clk 0:02:57]} 3. d4 {[%clk 0:03:01]}  Nb6 {[%clk 0:02:55]} 4. Nc3 {[%clk 0:03:01]}  h6 {[%clk 0:02:52]} 5. e4 {[%clk 0:02:57]}  dxe4 {[%clk 0:02:52]} 6. Nxe4 {[%clk 0:02:58]}  Nf6 {[%clk 0:02:53]} 7. Bd3 {[%clk 0:02:46]}  Bg4 {[%clk 0:02:49]} 8. h3 {[%clk 0:02:41]}  Bh5 {[%clk 0:02:48]} 9. g4 {[%clk 0:02:37]}  Bg6 {[%clk 0:02:48]} 10. Nxf6+ {[%clk 0:02:36]}  exf6 {[%clk 0:02:48]} 11. Bxg6 {[%clk 0:02:36]}  fxg6 {[%clk 0:02:49]} 12. Qd3 {[%clk 0:02:35]}  Qe7+ {[%clk 0:02:47]} 13. Be3 {[%clk 0:02:33]}  Qf7 {[%clk 0:02:47]} 14. Qe4+ {[%clk 0:02:20]}  Be7 {[%clk 0:02:47]} 15. Qxb7 {[%clk 0:02:21]}  O-O {[%clk 0:02:47]} 16. O-O {[%clk 0:02:11]}  Nd5 {[%clk 0:02:40]} 17. Rae1 {[%clk 0:01:58]}  Rab8 {[%clk 0:02:29]} 18. Qxa7 {[%clk 0:01:48]}  Rxb2 {[%clk 0:02:29]} 19. c4 {[%clk 0:01:47]}  Nxe3 {[%clk 0:02:25]} 20. Rxe3 {[%clk 0:01:48]}  Bd6 {[%clk 0:02:25]} 21. c5 {[%clk 0:01:41]}  Bf4 {[%clk 0:02:16]} 22. Rb3 {[%clk 0:01:07]}  Rxb3 {[%clk 0:02:15]} 23. axb3 {[%clk 0:01:08]}  f5 {[%clk 0:02:14]} 24. Qb7 {[%clk 0:00:56]}  fxg4 {[%clk 0:02:13]} 25. hxg4 {[%clk 0:00:57]}  Qe6 {[%clk 0:02:13]} 26. Ne5 {[%clk 0:00:38]}  Bxe5 {[%clk 0:01:47]} 27. dxe5 {[%clk 0:00:38]}  Qxe5 {[%clk 0:01:47]} 28. Rd1 {[%clk 0:00:30]}  h5 {[%clk 0:01:42]} 29. Qd5+ {[%clk 0:00:28]}  Qxd5 {[%clk 0:01:39]} 30. Rxd5 {[%clk 0:00:29]}  Rf3 {[%clk 0:01:35]} 31. b4 {[%clk 0:00:22]}  Rf4 {[%clk 0:01:35]} 32. gxh5 {[%clk 0:00:20]}  Rxb4 {[%clk 0:01:33]} 33. Rd8+ {[%clk 0:00:16]}  Kh7 {[%clk 0:01:33]} 34. hxg6+ {[%clk 0:00:16]}  Kxg6 {[%clk 0:01:34]} 35. Rd7 {[%clk 0:00:17]}  Rc4 {[%clk 0:01:28]} 36. Rxc7 {[%clk 0:00:17]}  Kf5 {[%clk 0:01:28]} 37. Kg2 {[%clk 0:00:16]}  g5 {[%clk 0:01:28]} 38. c6 {[%clk 0:00:16]}  Rc2 {[%clk 0:01:25]} 39. Rc8 {[%clk 0:00:16]}  Ke6 {[%clk 0:01:23]} 40. Kg3 {[%clk 0:00:13]}  Rc4 {[%clk 0:01:23]} 41. f3 {[%clk 0:00:13]}  Kd6 {[%clk 0:01:19]} 42. Rd8+ {[%clk 0:00:06]}  Ke6 {[%clk 0:01:15]} 43. Re8+ {[%clk 0:00:05]}  Kf7 {[%clk 0:01:13]} 44. Rc8 {[%clk 0:00:05]}  Kg7 {[%clk 0:01:10]} 45. Kf2 {[%clk 0:00:03]}  Rc3 {[%clk 0:01:10]} 46. Ke2 {[%clk 0:00:03]}  Kh7 {[%clk 0:01:10]} 0-1


[Site "https://www.chess.com"]

[Event "Titled Tuesday Blitz May 03 Early 2022"]
[White "Sychev, Klementy"]
[Black "Oparin, Grigoriy"]
[WhiteFideId "4114060"]
[BlackFideId "24125890"]
[WhiteElo "2564"]
[BlackElo "2665"]
[Result "1-0"]
[Round "08"]
[TimeControl "180+1"]
[Date "2022.05.03"]
[WhiteClock "0:00:50"]
[BlackClock "0:00:01"]

1. d4 {[%clk 0:02:59]}  d5 {[%clk 0:03:00]} 2. c4 {[%clk 0:02:59]}  e6 {[%clk 0:03:01]} 3. Nf3 {[%clk 0:02:59]}  Nf6 {[%clk 0:03:01]} 4. Nc3 {[%clk 0:02:57]}  Be7 {[%clk 0:03:00]} 5. Bf4 {[%clk 0:02:51]}  O-O {[%clk 0:03:00]} 6. e3 {[%clk 0:02:52]}  Nbd7 {[%clk 0:03:00]} 7. cxd5 {[%clk 0:02:40]}  Nxd5 {[%clk 0:03:00]} 8. Nxd5 {[%clk 0:02:41]}  exd5 {[%clk 0:03:01]} 9. Bd3 {[%clk 0:02:41]}  c5 {[%clk 0:03:01]} 10. O-O {[%clk 0:02:40]}  c4 {[%clk 0:03:01]} 11. Bc2 {[%clk 0:02:40]}  Nf6 {[%clk 0:02:52]} 12. Ne5 {[%clk 0:02:38]}  b5 {[%clk 0:02:52]} 13. Nc6 {[%clk 0:02:33]}  Qd7 {[%clk 0:02:50]} 14. Nxe7+ {[%clk 0:02:32]}  Qxe7 {[%clk 0:02:51]} 15. Bg5 {[%clk 0:02:25]}  h6 {[%clk 0:02:49]} 16. Bh4 {[%clk 0:02:23]}  Be6 {[%clk 0:02:46]} 17. f3 {[%clk 0:02:20]}  g5 {[%clk 0:02:30]} 18. Bf2 {[%clk 0:02:16]}  Nd7 {[%clk 0:02:30]} 19. e4 {[%clk 0:02:15]}  f6 {[%clk 0:02:30]} 20. Re1 {[%clk 0:02:13]}  Qf7 {[%clk 0:02:29]} 21. Qd2 {[%clk 0:02:13]}  Rfe8 {[%clk 0:02:25]} 22. Qa5 {[%clk 0:02:12]}  a6 {[%clk 0:02:23]} 23. Re2 {[%clk 0:02:03]}  Nf8 {[%clk 0:02:14]} 24. Rae1 {[%clk 0:02:01]}  Qd7 {[%clk 0:02:14]} 25. h4 {[%clk 0:01:52]}  Bf7 {[%clk 0:02:11]} 26. hxg5 {[%clk 0:01:50]}  hxg5 {[%clk 0:02:12]} 27. Qd2 {[%clk 0:01:44]}  Ne6 {[%clk 0:02:03]} 28. e5 {[%clk 0:01:40]}  Nf4 {[%clk 0:01:59]} 29. Re3 {[%clk 0:01:36]}  f5 {[%clk 0:01:27]} 30. e6 {[%clk 0:01:36]}  Bxe6 {[%clk 0:01:12]} 31. Re5 {[%clk 0:01:34]}  Qf7 {[%clk 0:01:12]} 32. Bg3 {[%clk 0:01:33]}  Nd3 {[%clk 0:01:04]} 33. Qxg5+ {[%clk 0:01:14]}  Qg7 {[%clk 0:01:04]} 34. Qxg7+ {[%clk 0:01:14]}  Kxg7 {[%clk 0:01:05]} 35. Rxe6 {[%clk 0:01:14]}  Nxe1 {[%clk 0:01:06]} 36. Rxe1 {[%clk 0:01:14]}  Rxe1+ {[%clk 0:01:05]} 37. Bxe1 {[%clk 0:01:15]}  Kf6 {[%clk 0:01:06]} 38. Bg3 {[%clk 0:01:14]}  b4 {[%clk 0:01:04]} 39. Be5+ {[%clk 0:01:13]}  Ke6 {[%clk 0:01:04]} 40. g4 {[%clk 0:01:13]}  fxg4 {[%clk 0:01:04]} 41. fxg4 {[%clk 0:01:13]}  a5 {[%clk 0:00:59]} 42. Bf5+ {[%clk 0:01:12]}  Ke7 {[%clk 0:00:59]} 43. g5 {[%clk 0:01:13]}  a4 {[%clk 0:00:55]} 44. g6 {[%clk 0:01:06]}  a3 {[%clk 0:00:16]} 45. bxa3 {[%clk 0:01:05]}  b3 {[%clk 0:00:15]} 46. axb3 {[%clk 0:01:04]}  cxb3 {[%clk 0:00:16]} 47. g7 {[%clk 0:01:04]}  b2 {[%clk 0:00:16]} 48. Kg2 {[%clk 0:00:58]}  Kf7 {[%clk 0:00:13]} 49. Bh7 {[%clk 0:00:57]}  Ke7 {[%clk 0:00:11]} 50. Kf2 {[%clk 0:00:57]}  Kf7 {[%clk 0:00:04]} 51. a4 {[%clk 0:00:56]}  Ke7 {[%clk 0:00:04]} 52. a5 {[%clk 0:00:57]}  Kf7 {[%clk 0:00:04]} 53. a6 {[%clk 0:00:57]}  Ke7 {[%clk 0:00:05]} 54. a7 {[%clk 0:00:57]}  Kf7 {[%clk 0:00:06]} 55. Ke2 {[%clk 0:00:54]}  b1=Q {[%clk 0:00:02]} 56. Bxb1 {[%clk 0:00:52]}  Kg8 {[%clk 0:00:01]} 57. Ba2 {[%clk 0:00:50]} 1-0


[Site "https://www.chess.com"]

[Event "Titled Tuesday Blitz May 03 Early 2022"]
[White "Terry, Renato"]
[Black "Cherniaiev, Tykhon"]
[WhiteFideId "3803457"]
[BlackFideId "14182360"]
[WhiteElo "2577"]
[BlackElo "2289"]
[Result "0-1"]
[Round "08"]
[TimeControl "180+1"]
[Date "2022.05.03"]
[WhiteClock "0:00:05"]
[BlackClock "0:00:27"]

1. e4 {[%clk 0:03:00]}  c5 {[%clk 0:02:59]} 2. Nf3 {[%clk 0:03:00]}  e6 {[%clk 0:02:59]} 3. Nc3 {[%clk 0:03:00]}  a6 {[%clk 0:02:59]} 4. g3 {[%clk 0:03:00]}  b5 {[%clk 0:02:58]} 5. Bg2 {[%clk 0:03:01]}  Bb7 {[%clk 0:02:58]} 6. d3 {[%clk 0:03:01]}  Nc6 {[%clk 0:02:57]} 7. O-O {[%clk 0:03:02]}  Nf6 {[%clk 0:02:58]} 8. Ng5 {[%clk 0:02:52]}  h6 {[%clk 0:02:56]} 9. Nh3 {[%clk 0:02:53]}  d6 {[%clk 0:02:55]} 10. f4 {[%clk 0:02:52]}  Be7 {[%clk 0:02:54]} 11. g4 {[%clk 0:02:51]}  Nd4 {[%clk 0:02:51]} 12. Ne2 {[%clk 0:02:46]}  Nxe2+ {[%clk 0:02:49]} 13. Qxe2 {[%clk 0:02:47]}  Qd7 {[%clk 0:02:39]} 14. c4 {[%clk 0:02:39]}  bxc4 {[%clk 0:02:38]} 15. dxc4 {[%clk 0:02:39]}  d5 {[%clk 0:02:36]} 16. Rd1 {[%clk 0:02:16]}  Qc7 {[%clk 0:02:10]} 17. exd5 {[%clk 0:01:46]}  exd5 {[%clk 0:02:09]} 18. g5 {[%clk 0:01:47]}  hxg5 {[%clk 0:02:04]} 19. fxg5 {[%clk 0:01:48]}  Nh5 {[%clk 0:01:29]} 20. Re1 {[%clk 0:01:24]}  d4 {[%clk 0:01:20]} 21. Bd2 {[%clk 0:01:00]}  Bxg2 {[%clk 0:01:12]} 22. Kxg2 {[%clk 0:01:00]}  Kf8 {[%clk 0:01:01]} 23. Qf3 {[%clk 0:00:56]}  Re8 {[%clk 0:00:57]} 24. Re4 {[%clk 0:00:45]}  g6 {[%clk 0:00:56]} 25. Rf1 {[%clk 0:00:43]}  Bd6 {[%clk 0:00:47]} 26. Rxe8+ {[%clk 0:00:37]}  Kxe8 {[%clk 0:00:48]} 27. Qa8+ {[%clk 0:00:37]}  Qb8 {[%clk 0:00:48]} 28. Qxa6 {[%clk 0:00:31]}  Kf8 {[%clk 0:00:40]} 29. b4 {[%clk 0:00:13]}  Kg7 {[%clk 0:00:39]} 30. bxc5 {[%clk 0:00:12]}  Bxh2 {[%clk 0:00:28]} 31. Qb6 {[%clk 0:00:05]}  Qg3+ {[%clk 0:00:27]} 0-1


[Site "https://www.chess.com"]

[Event "Titled Tuesday Blitz May 03 Early 2022"]
[White "Terzi, Alexei"]
[Black "Bocharov, Dmitry"]
[WhiteFideId "13505076"]
[BlackFideId "4138716"]
[WhiteElo "2031"]
[BlackElo "2541"]
[Result "0-1"]
[Round "08"]
[TimeControl "180+1"]
[Date "2022.05.03"]
[WhiteClock "0:00:59"]
[BlackClock "0:00:56"]

1. e4 {[%clk 0:03:00]}  c5 {[%clk 0:02:53]} 2. Nf3 {[%clk 0:02:59]}  d6 {[%clk 0:02:54]} 3. d4 {[%clk 0:03:00]}  cxd4 {[%clk 0:02:55]} 4. Nxd4 {[%clk 0:03:01]}  Nf6 {[%clk 0:02:55]} 5. Nc3 {[%clk 0:03:01]}  a6 {[%clk 0:02:55]} 6. Nb3 {[%clk 0:03:01]}  e6 {[%clk 0:02:54]} 7. g4 {[%clk 0:02:56]}  b5 {[%clk 0:02:53]} 8. g5 {[%clk 0:02:56]}  b4 {[%clk 0:02:52]} 9. gxf6 {[%clk 0:02:50]}  bxc3 {[%clk 0:02:52]} 10. fxg7 {[%clk 0:02:26]}  Bxg7 {[%clk 0:02:53]} 11. bxc3 {[%clk 0:02:24]}  Bxc3+ {[%clk 0:02:49]} 12. Bd2 {[%clk 0:02:24]}  Bxa1 {[%clk 0:02:49]} 13. Qxa1 {[%clk 0:02:24]}  e5 {[%clk 0:02:49]} 14. Bc4 {[%clk 0:02:13]}  Be6 {[%clk 0:02:38]} 15. Bxe6 {[%clk 0:02:10]}  fxe6 {[%clk 0:02:39]} 16. Qd1 {[%clk 0:02:09]}  Qf6 {[%clk 0:02:36]} 17. Rg1 {[%clk 0:02:03]}  Rf8 {[%clk 0:02:31]} 18. Qh5+ {[%clk 0:02:02]}  Qf7 {[%clk 0:02:28]} 19. Qh4 {[%clk 0:02:02]}  Nc6 {[%clk 0:02:26]} 20. c3 {[%clk 0:01:42]}  Kd7 {[%clk 0:02:19]} 21. Nc1 {[%clk 0:01:25]}  Rg8 {[%clk 0:02:17]} 22. Rg3 {[%clk 0:01:24]}  Raf8 {[%clk 0:02:14]} 23. Nd3 {[%clk 0:01:22]}  Rxg3 {[%clk 0:02:10]} 24. hxg3 {[%clk 0:01:23]}  Qf3 {[%clk 0:02:05]} 25. Be3 {[%clk 0:01:22]}  Rf7 {[%clk 0:02:04]} 26. a4 {[%clk 0:01:20]}  h5 {[%clk 0:02:01]} 27. Nb2 {[%clk 0:01:14]}  Qg4 {[%clk 0:01:53]} 28. Qh1 {[%clk 0:01:12]}  Rf3 {[%clk 0:01:51]} 29. Nc4 {[%clk 0:01:07]}  h4 {[%clk 0:01:18]} 30. gxh4 {[%clk 0:01:07]}  Rh3 {[%clk 0:01:17]} 31. Qf1 {[%clk 0:01:01]}  Qxh4 {[%clk 0:01:16]} 32. Qd3 {[%clk 0:01:01]}  Rh1+ {[%clk 0:01:13]} 33. Kd2 {[%clk 0:01:00]}  Qe7 {[%clk 0:01:00]} 34. Nb6+ {[%clk 0:01:00]}  Ke8 {[%clk 0:00:59]} 35. Qxa6 {[%clk 0:01:00]}  Kf7 {[%clk 0:00:57]} 36. Qb7 {[%clk 0:00:59]}  Qxb7 {[%clk 0:00:56]} 0-1


[Site "https://www.chess.com"]

[Event "Titled Tuesday Blitz May 03 Early 2022"]
[White "Trost, Edvin"]
[Black "Prohorov, Olexandr"]
[WhiteFideId "1729519"]
[BlackFideId "14105578"]
[WhiteElo "2160"]
[BlackElo "1993"]
[Result "0-1"]
[Round "08"]
[TimeControl "180+1"]
[Date "2022.05.03"]
[WhiteClock "0:00:13"]
[BlackClock "0:01:13"]

1. d4 {[%clk 0:01:59]}  g6 {[%clk 0:02:58]} 2. c4 {[%clk 0:02:00]}  Bg7 {[%clk 0:02:57]} 3. Nc3 {[%clk 0:02:01]}  c5 {[%clk 0:02:58]} 4. d5 {[%clk 0:02:01]}  Bxc3+ {[%clk 0:02:58]} 5. bxc3 {[%clk 0:02:02]}  f5 {[%clk 0:02:59]} 6. h4 {[%clk 0:02:03]}  Nf6 {[%clk 0:02:58]} 7. h5 {[%clk 0:02:03]}  Nxh5 {[%clk 0:02:58]} 8. Rxh5 {[%clk 0:02:03]}  gxh5 {[%clk 0:02:59]} 9. e4 {[%clk 0:02:03]}  d6 {[%clk 0:02:28]} 10. Qxh5+ {[%clk 0:02:04]}  Kd7 {[%clk 0:02:27]} 11. Qxf5+ {[%clk 0:01:45]}  Kc7 {[%clk 0:02:27]} 12. Qh5 {[%clk 0:01:45]}  Nd7 {[%clk 0:02:24]} 13. Nf3 {[%clk 0:01:39]}  Nf6 {[%clk 0:02:18]} 14. Qh4 {[%clk 0:01:39]}  Qf8 {[%clk 0:02:06]} 15. Bh6 {[%clk 0:01:33]}  Qf7 {[%clk 0:02:03]} 16. e5 {[%clk 0:01:30]}  Ng4 {[%clk 0:02:03]} 17. e6 {[%clk 0:01:27]}  Qf6 {[%clk 0:02:01]} 18. Bg5 {[%clk 0:01:28]}  Qxc3+ {[%clk 0:01:58]} 19. Ke2 {[%clk 0:01:24]}  Qxc4+ {[%clk 0:01:58]} 20. Kd2 {[%clk 0:01:05]}  Qxd5+ {[%clk 0:01:57]} 21. Kc3 {[%clk 0:01:05]}  Ne5 {[%clk 0:01:50]} 22. Bxe7 {[%clk 0:00:39]}  Bxe6 {[%clk 0:01:41]} 23. Bf6 {[%clk 0:00:34]}  Nxf3 {[%clk 0:01:37]} 24. gxf3 {[%clk 0:00:34]}  Rhf8 {[%clk 0:01:33]} 25. Bd3 {[%clk 0:00:31]}  Qxf3 {[%clk 0:01:26]} 26. Bg5 {[%clk 0:00:21]}  Qxf2 {[%clk 0:01:16]} 27. Bh6 {[%clk 0:00:14]}  Qxh4 {[%clk 0:01:13]} 28. Bxf8 {[%clk 0:00:07]}  Qd4+ {[%clk 0:01:12]} 29. Kc2 {[%clk 0:00:08]}  Qxa1 {[%clk 0:01:12]} 30. Bg7 {[%clk 0:00:09]}  Qxg7 {[%clk 0:01:11]} 31. Bf5 {[%clk 0:00:10]}  Bxf5+ {[%clk 0:01:11]} 32. Kb3 {[%clk 0:00:11]}  Qg4 {[%clk 0:01:11]} 33. a4 {[%clk 0:00:12]}  Qb4+ {[%clk 0:01:11]} 34. Ka2 {[%clk 0:00:12]}  Re8 {[%clk 0:01:11]} 35. a5 {[%clk 0:00:12]}  Re2+ {[%clk 0:01:12]} 36. Ka1 {[%clk 0:00:13]}  Qe1# {[%clk 0:01:13]} 0-1


[Site "https://www.chess.com"]